fUST/lending_fUST_20240919
["ID","MTS","AMOUNT","RATE_DAILY","PERIOD"]
[338561913,1726735641927,-696.12194605,0.00019865,2]
[338561914,1726735641950,-696.12194605,0.00019865,2]
[338561915,1726735641972,-696.12194605,0.00019865,2]
[338561916,1726735641993,-696.12194605,0.00019865,2]
[338561917,1726735642014,-696.12194605,0.00019865,2]
[338561918,1726735642035,-696.12194605,0.00019865,2]
[338561919,1726735642056,-696.12194605,0.00019865,2]
[338561920,1726735642077,-696.12194605,0.00019865,2]
[338561921,1726735642099,-696.12194605,0.00019865,2]
[338561922,1726735642124,-696.12194605,0.00019865,2]
[338561923,1726735642146,-696.12194605,0.00019865,2]
[338561924,1726735642168,-696.12194605,0.00019865,2]
[338561925,1726735642189,-696.12194605,0.00019865,2]
[338561926,1726735642214,-696.12194605,0.00019865,2]
[338561927,1726735642239,-696.12194605,0.00019865,2]
[338561928,1726735642263,-696.12194605,0.00019865,2]
[338561929,1726735642284,-696.12194605,0.00019865,2]
[338561930,1726735642306,-696.12194605,0.00019865,2]
[338561931,1726735642329,-696.12194605,0.00019865,2]
[338561932,1726735642350,-500.0,0.00019865,2]
[338561933,1726735642372,-500.0,0.00019865,2]
[338561934,1726735642393,-694.71847439,0.00019865,2]
[338561935,1726735642415,-500.0,0.00019865,2]
[338561936,1726735642437,-694.71847439,0.00019865,2]
[338561937,1726735642461,-694.71847439,0.00019865,2]
[338561938,1726735642481,-500.0,0.00019865,2]
[338561939,1726735642503,-694.71847439,0.00019865,2]
[338561940,1726735642524,-694.71847439,0.00019865,2]
[338561941,1726735642547,-500.0,0.00019865,2]
[338561942,1726735642570,-694.71847439,0.00019865,2]
[338561943,1726735642590,-539.68468531,0.00019865,2]
[338561944,1726735642611,-694.71847439,0.00019865,2]
[338561945,1726735642632,-500.0,0.00019865,2]
[338561946,1726735642655,-694.71847439,0.00019865,2]
[338561947,1726735642676,-694.71847439,0.00019865,2]
[338561948,1726735642697,-694.71847439,0.00019865,2]
[338561949,1726735642720,-694.71847439,0.00019865,2]
[338561950,1726735642741,-694.71847439,0.00019865,2]
[338561951,1726735642763,-319.51758654,0.00019865,2]
[338562317,1726735837861,-500.0,0.00018245,2]
[338562319,1726735837871,-300.0,0.00018753,2]
[338562321,1726735837880,-300.0,0.00018753,2]
[338562323,1726735837889,-20544.16889324,0.00018754,2]
[338562757,1726735842223,-4355.83110676,0.00018754,2]
[338562759,1726735842233,-500.0,0.00019,2]
[338562761,1726735842243,-300.593626,0.00019178,2]
[338562763,1726735842254,-2000.0,0.000195,2]
[338562765,1726735842264,-781.57506,0.000195,2]
[338562767,1726735842273,-6878.59352624,0.0001968,2]
[338562769,1726735842283,-881.81714322,0.00019766,2]
[338562771,1726735842292,-12588.68161261,0.00019767,2]
[338562772,1726735842301,-153.0,0.00019771,2]
[338562774,1726735842313,-153.0,0.00019771,2]
[338562776,1726735842323,-153.0,0.00019771,2]
[338562778,1726735842333,-153.0,0.00019771,2]
[338562780,1726735842342,-153.0,0.00019771,2]
[338562782,1726735842353,-247.04,0.00019846,3]
[338562784,1726735842362,-741.15,0.00019846,3]
[338562786,1726735842372,-494.09,0.00019847,3]
[338562788,1726735842381,-56171.2692424,0.00019856,3]
[338562790,1726735842390,-7169.97734075,0.00019856,3]
[338562843,1726735842923,-17027.82157955,0.00019856,3]
[338562845,1726735842933,-500.0,0.00019856,2]
[338562846,1726735842943,-500.0,0.00019856,2]
[338562848,1726735842953,-500.0,0.00019856,2]
[338562850,1726735842962,-500.0,0.00019856,2]
[338562852,1726735842972,-500.0,0.00019856,2]
[338562854,1726735842981,-500.0,0.00019856,2]
[338562856,1726735842990,-500.0,0.00019856,2]
[338562858,1726735843000,-500.0,0.00019856,2]
[338562859,1726735843009,-500.0,0.00019856,2]
[338562861,1726735843018,-500.0,0.00019856,2]
[338562863,1726735843027,-500.0,0.00019856,2]
[338562865,1726735843037,-500.0,0.00019856,2]
[338562867,1726735843046,-260.17668606,0.00019856,2]
[338562869,1726735843055,-500.0,0.00019856,2]
[338562871,1726735843064,-500.0,0.00019856,2]
[338562873,1726735843073,-500.0,0.00019856,2]
[338562875,1726735843083,-500.0,0.00019856,2]
[338562877,1726735843092,-500.0,0.00019856,2]
[338562879,1726735843104,-500.0,0.00019856,2]
[338562881,1726735843113,-500.0,0.00019856,2]
[338562883,1726735843122,-500.0,0.00019856,2]
[338562884,1726735843132,-500.0,0.00019856,2]
[338562886,1726735843141,-500.0,0.00019856,2]
[338562888,1726735843150,-500.0,0.00019856,2]
[338562890,1726735843159,-500.0,0.00019856,2]
[338562892,1726735843168,-500.0,0.00019856,2]
[338562894,1726735843177,-500.0,0.00019856,2]
[338562896,1726735843186,-500.0,0.00019856,2]
[338562898,1726735843197,-500.0,0.00019856,2]
[338562900,1726735843206,-500.0,0.00019856,2]
[338562902,1726735843215,-500.0,0.00019856,2]
[338562903,1726735843224,-500.0,0.00019856,2]
[338562905,1726735843233,-500.0,0.00019856,2]
[338562907,1726735843243,-500.0,0.00019856,2]
[338562909,1726735843252,-500.0,0.00019856,2]
[338562911,1726735843262,-153.96846853,0.00019856,2]
[338562913,1726735843271,-500.0,0.00019856,2]
[338562915,1726735843280,-500.0,0.00019856,2]
[338562916,1726735843289,-500.0,0.00019856,2]
[338562918,1726735843299,-500.0,0.00019856,2]
[338562920,1726735843309,-500.0,0.00019856,2]
[338562922,1726735843318,-199.99999999,0.00019856,2]
[338562924,1726735843328,-7394.97438945,0.00019857,5]
[338562926,1726735843337,-29108.390911,0.00019857,3]
[338562932,1726735843398,-1.07135703,0.00019857,3]
[338563095,1726735845404,-12183.79352506,0.00019857,3]
[338563217,1726735846709,-7348.0778749,0.00019857,3]
[338563266,1726735847472,-2066.825367,0.00019857,3]
[338563268,1726735847484,-309.8,0.00019857,3]
[338563281,1726735857706,1129.3431069,0.00014013,2]
[338563282,1726735857730,1095.0868931,0.00014013,2]
[338563289,1726736266413,198515.9165329,0.00014,2]
[338563316,1726736830158,-190.508715,0.00016227,2]
[338563317,1726736830180,-1053.2644015,0.00016623,2]
[338563318,1726736830200,-515.986123,0.00016647,2]
[338563319,1726736830221,-513.516854,0.00016869,2]
[338563320,1726736830242,-3000.0,0.00016897,2]
[338563321,1726736830263,-250.0,0.00017136,2]
[338563322,1726736830285,-187.794794,0.0001719,2]
[338563323,1726736830306,-187.794794,0.00017414,2]
[338563324,1726736830328,-187.794794,0.00017638,2]
[338563325,1726736830348,-202.83877894,0.00017708,2]
[338563326,1726736830368,-500.0,0.00017808,2]
[338563327,1726736830388,-187.794794,0.00017862,2]
[338563328,1726736830409,-187.794794,0.00018086,2]
[338563329,1726736830429,-300.0,0.00018109,2]
[338563330,1726736830450,-300.0,0.00018109,2]
[338563331,1726736830471,-3906.68785514,0.0001811,2]
[338563332,1726736830491,-24900.0,0.00018191,2]
[338563333,1726736830512,-150.0,0.00018235,2]
[338563334,1726736830532,-500.0,0.00018733,2]
[338563335,1726736830552,-500.0,0.00018733,2]
[338563336,1726736830573,-3000.0,0.000189,2]
[338563337,1726736830594,-3000.0,0.0001891,2]
[338563338,1726736830614,-3000.0,0.0001892,2]
[338563339,1726736830635,-3000.0,0.0001893,2]
[338563340,1726736830657,-3000.0,0.0001894,2]
[338563341,1726736830677,-3000.0,0.0001895,2]
[338563342,1726736830699,-3000.0,0.0001896,2]
[338563343,1726736830719,-3000.0,0.0001897,2]
[338563344,1726736830740,-3000.0,0.0001898,2]
[338563345,1726736830760,-3000.0,0.0001899,2]
[338563346,1726736830780,-1000.0,0.00019,2]
[338563347,1726736830801,-3000.0,0.00019,2]
[338563348,1726736830823,-557.4313536,0.00019,2]
[338563349,1726736830843,-500.0,0.00019,2]
[338563350,1726736830863,-3000.0,0.0001901,2]
[338563351,1726736830884,-3000.0,0.0001902,2]
[338563352,1726736830905,-3000.0,0.0001903,2]
[338563353,1726736830927,-3000.0,0.0001904,2]
[338563354,1726736830948,-3000.0,0.0001905,2]
[338563355,1726736830969,-4196.453525,0.0001906,2]
[338563356,1726736830995,-174.68393,0.00019178,2]
[338563357,1726736831016,-153.0,0.00019178,2]
[338563358,1726736831038,-153.0,0.00019178,2]
[338563359,1726736831060,-300.593626,0.00019178,2]
[338563360,1726736831080,-573.76,0.000192,2]
[338563361,1726736831101,-500.0,0.00019341,2]
[338563362,1726736831122,-150.0,0.00019471,2]
[338563363,1726736831142,-524.0,0.00019471,2]
[338563364,1726736831163,-1216.0,0.00019471,2]
[338563365,1726736831183,-39.8511687,0.000195,2]
[338563421,1726737032160,-3957.73161419,0.00018569,2]
[338563422,1726737032171,-190.352964,0.00018587,2]
[338563423,1726737032180,-300.0,0.00018669,2]
[338563424,1726737032191,-300.0,0.00018669,2]
[338563425,1726737032200,-3128.74655276,0.0001867,2]
[338563426,1726737032217,-21771.25344724,0.0001867,2]
[338563427,1726737032236,-500.0,0.00018733,2]
[338563428,1726737032247,-3418.3518733,0.0001881,2]
[338563429,1726737032257,-190.352964,0.0001891,2]
[338563430,1726737032267,-175.391578,0.00019178,2]
[338563431,1726737032277,-190.352964,0.00019233,2]
[338563432,1726737032288,-960.1488313,0.000195,2]
[338563433,1726737032298,-13.15939422,0.000195,2]
[338563472,1726737038064,-544.27195938,0.000195,2]
[338563474,1726737038074,-632.80071475,0.00019511,2]
[338563476,1726737038084,-190.352964,0.00019555,2]
[338563478,1726737038094,-153.0,0.00019633,2]
[338563480,1726737038103,-162.7350028,0.00019647,2]
[338563483,1726737038114,-1000.0,0.00019647,2]
[338563485,1726737038124,-162.73500277,0.00019674,2]
[338563487,1726737038133,-162.73500277,0.00019701,2]
[338563489,1726737038142,-494.09,0.00019717,3]
[338563491,1726737038151,-247.04,0.00019717,3]
[338563494,1726737038161,-741.15,0.00019717,3]
[338563496,1726737038170,-20228.72885098,0.00019727,2]
[338563498,1726737038182,-53416.03309881,0.00019727,2]
[338563501,1726737038191,-1130.50845947,0.00019727,2]
[338563503,1726737038200,-162.73500277,0.00019728,2]
[338563505,1726737038209,-1000.0,0.00019733,2]
[338563507,1726737038219,-500.0,0.00019736,2]
[338563508,1726737038228,-250.0,0.00019736,2]
[338563511,1726737038238,-500.0,0.00019736,2]
[338563513,1726737038247,-500.0,0.00019736,2]
[338563515,1726737038256,-500.0,0.00019736,2]
[338563517,1726737038266,-500.0,0.00019736,2]
[338563519,1726737038276,-500.0,0.00019736,2]
[338563521,1726737038285,-500.0,0.00019736,2]
[338563523,1726737038294,-500.0,0.00019736,2]
[338563525,1726737038304,-500.0,0.00019736,2]
[338563527,1726737038314,-500.0,0.00019736,2]
[338563529,1726737038323,-153.96846853,0.00019736,2]
[338563531,1726737038332,-500.0,0.00019736,2]
[338563533,1726737038342,-500.0,0.00019736,2]
[338563535,1726737038351,-500.0,0.00019736,2]
[338563537,1726737038360,-500.0,0.00019736,2]
[338563539,1726737038369,-500.0,0.00019736,2]
[338563541,1726737038379,-500.0,0.00019736,2]
[338563543,1726737038388,-500.0,0.00019736,2]
[338563545,1726737038398,-500.0,0.00019736,2]
[338563547,1726737038407,-500.0,0.00019736,2]
[338563549,1726737038417,-500.0,0.00019736,2]
[338563551,1726737038427,-500.0,0.00019736,2]
[338563553,1726737038437,-500.0,0.00019736,2]
[338563555,1726737038447,-500.0,0.00019736,2]
[338563557,1726737038457,-260.17668605,0.00019736,2]
[338563559,1726737038467,-500.0,0.00019736,2]
[338563561,1726737038477,-500.0,0.00019736,2]
[338563563,1726737038486,-500.0,0.00019736,2]
[338563565,1726737038495,-500.0,0.00019736,2]
[338563567,1726737038504,-500.0,0.00019736,2]
[338563569,1726737038514,-500.0,0.00019736,2]
[338563571,1726737038524,-500.0,0.00019736,2]
[338563573,1726737038534,-500.0,0.00019736,2]
[338563575,1726737038544,-500.0,0.00019736,2]
[338563577,1726737038554,-500.0,0.00019736,2]
[338563579,1726737038564,-500.0,0.00019736,2]
[338563581,1726737038573,-500.0,0.00019736,2]
[338563583,1726737038583,-500.0,0.00019736,2]
[338563585,1726737038593,-500.0,0.00019736,2]
[338563587,1726737038603,-500.0,0.00019736,2]
[338563589,1726737038613,-250.0,0.00019736,2]
[338563591,1726737038623,-55075.7908362,0.00019737,3]
[338563593,1726737038633,-2868.53128899,0.00019737,3]
[338563595,1726737038642,-22065.03339194,0.00019737,3]
[338563598,1726737038654,-270.39685495,0.00019737,3]
[338563600,1726737038665,-2476.49678872,0.00019737,3]
[338563602,1726737038677,-39849.36463666,0.00019737,3]
[338563740,1726737040008,-32464.90399145,0.00019737,3]
[338563742,1726737040020,-2167.75264294,0.00019737,3]
[338563748,1726737040065,-91687.65753922,0.00019737,3]
[338563750,1726737040078,-84397.34833512,0.00019737,3]
[338563752,1726737040087,-14342.656445,0.00019737,3]
[338563754,1726737040097,-2868.53128899,0.00019748,3]
[338563756,1726737040106,-7394.97438945,0.00019757,5]
[338563758,1726737040117,-58958.64075488,0.00019758,2]
[338563760,1726737040126,-500.0,0.00019773,2]
[338563762,1726737040136,-500.0,0.00019773,2]
[338563764,1726737040145,-500.72022234,0.00019773,2]
[338563766,1726737040154,-500.0,0.00019773,2]
[338563769,1726737040163,-500.0,0.00019773,2]
[338563771,1726737040172,-1000.0,0.0001979,2]
[338563773,1726737040182,-1000.0,0.00019791,2]
[338563774,1726737040190,-1833.28825381,0.000198,2]
[338563777,1726737040200,-350.0,0.000198,5]
[338563778,1726737040209,-400.0,0.000198,5]
[338563780,1726737040218,-154.25443305,0.00019803,2]
[338563782,1726737040227,-8605.59386697,0.00019817,3]
[338563784,1726737040238,-500.0,0.00019817,2]
[338563785,1726737040247,-500.0,0.00019817,2]
[338563786,1726737040256,-244.86590793,0.00019817,2]
[338563787,1726737040266,-500.0,0.00019817,2]
[338563788,1726737040275,-500.0,0.00019817,2]
[338563789,1726737040285,-500.0,0.00019817,2]
[338563790,1726737040294,-235.0344258,0.00019817,2]
[338563791,1726737040303,-500.0,0.00019817,2]
[338563792,1726737040312,-500.0,0.00019817,2]
[338563793,1726737040321,-500.0,0.00019817,2]
[338563794,1726737040331,-500.0,0.00019817,2]
[338563795,1726737040340,-500.0,0.00019817,2]
[338563796,1726737040350,-500.0,0.00019817,2]
[338563797,1726737040359,-500.0,0.00019817,2]
[338563798,1726737040368,-500.0,0.00019817,2]
[338563800,1726737040377,-273.27631204,0.00019817,2]
[338563801,1726737040386,-500.0,0.00019817,2]
[338563803,1726737040396,-551.09694962,0.00019817,2]
[338563805,1726737040405,-500.0,0.00019817,2]
[338563807,1726737040415,-500.0,0.00019817,2]
[338563809,1726737040424,-500.0,0.00019817,2]
[338563811,1726737040433,-276.09189037,0.00019817,2]
[338563813,1726737040442,-500.0,0.00019817,2]
[338563815,1726737040451,-2868.53128899,0.00019818,3]
[338563817,1726737040461,-5737.06257798,0.00019818,3]
[338563819,1726737040471,-151.0,0.00019827,2]
[338563820,1726737040480,-151.0,0.00019827,2]
[338563822,1726737040489,-1356.979068,0.00019827,2]
[338563824,1726737040498,-1356.979068,0.00019827,2]
[338563827,1726737040508,-151.0,0.00019827,2]
[338563829,1726737040517,-151.0,0.00019827,2]
[338563831,1726737040527,-995.750854,0.00019827,2]
[338563833,1726737040536,-151.0,0.00019827,2]
[338563834,1726737040545,-995.750854,0.00019827,2]
[338563836,1726737040554,-1133.191621,0.00019827,2]
[338563838,1726737040563,-1133.191621,0.00019827,2]
[338563840,1726737040572,-402.321528,0.00019827,2]
[338563842,1726737040581,-402.321528,0.00019827,2]
[338563844,1726737040591,-151.0,0.00019827,2]
[338563846,1726737040600,-320.892577,0.00019827,2]
[338563848,1726737040610,-452.891718,0.00019827,2]
[338563850,1726737040619,-320.892577,0.00019827,2]
[338563852,1726737040628,-452.891718,0.00019827,2]
[338563854,1726737040637,-151.0,0.00019827,2]
[338563856,1726737040647,-151.0,0.00019827,2]
[338563858,1726737040656,-151.0,0.00019827,2]
[338563860,1726737040668,-151.0,0.00019827,2]
[338563862,1726737040677,-151.0,0.00019827,2]
[338563864,1726737040686,-291.92117,0.00019827,2]
[338563866,1726737040695,-166.899942,0.00019827,2]
[338563868,1726737040704,-151.0,0.00019827,2]
[338563870,1726737040715,-166.899942,0.00019827,2]
[338563873,1726737040728,-151.0,0.00019827,2]
[338563875,1726737040739,-279.470345,0.00019828,2]
[338563877,1726737040749,-151.0,0.00019828,2]
[338563879,1726737040758,-151.0,0.00019828,2]
[338563881,1726737040767,-812.674974,0.00019828,2]
[338563883,1726737040777,-1356.979068,0.00019828,2]
[338563885,1726737040789,-812.674974,0.00019828,2]
[338563887,1726737040799,-1356.979068,0.00019828,2]
[338563889,1726737040809,-151.0,0.00019828,2]
[338563891,1726737040821,-151.0,0.00019828,2]
[338563893,1726737040831,-291.490486,0.00019828,2]
[338563895,1726737040841,-291.490486,0.00019828,2]
[338563898,1726737040852,-995.750854,0.00019828,2]
[338563900,1726737040863,-172.813276,0.00019828,2]
[338563902,1726737040873,-995.750854,0.00019828,2]
[338563903,1726737040882,-1133.191621,0.00019828,2]
[338563905,1726737040891,-1133.191621,0.00019828,2]
[338563907,1726737040901,-402.321528,0.00019828,2]
[338563909,1726737040910,-402.321528,0.00019828,2]
[338563911,1726737040920,-151.0,0.00019828,2]
[338563913,1726737040929,-320.892577,0.00019828,2]
[338563915,1726737040938,-320.892577,0.00019828,2]
[338563917,1726737040947,-452.891718,0.00019828,2]
[338563919,1726737040957,-452.891718,0.00019828,2]
[338563921,1726737040966,-151.0,0.00019828,2]
[338563923,1726737040975,-151.0,0.00019828,2]
[338563925,1726737040984,-151.0,0.00019828,2]
[338563927,1726737040994,-151.0,0.00019828,2]
[338563929,1726737041003,-151.0,0.00019828,2]
[338563931,1726737041012,-166.899942,0.00019828,2]
[338563933,1726737041021,-151.0,0.00019828,2]
[338563935,1726737041030,-166.899942,0.00019828,2]
[338563937,1726737041044,-151.0,0.00019828,2]
[338563939,1726737041054,-151.0,0.00019828,2]
[338563941,1726737041063,-151.0,0.00019828,2]
[338563943,1726737041073,-323.897088,0.00019828,2]
[338563945,1726737041083,-323.897088,0.00019828,2]
[338563947,1726737041092,-323.897088,0.00019828,2]
[338563949,1726737041101,-323.897088,0.00019828,2]
[338563951,1726737041110,-200.953414,0.00019828,2]
[338563953,1726737041122,-151.0,0.00019828,2]
[338563955,1726737041132,-151.0,0.00019828,2]
[338563957,1726737041143,-151.0,0.00019828,2]
[338563958,1726737041153,-306.518926,0.00019828,2]
[338563960,1726737041162,-200.953414,0.00019828,2]
[338563962,1726737041171,-306.518926,0.00019828,2]
[338563964,1726737041181,-151.0,0.00019828,2]
[338563966,1726737041190,-151.0,0.00019828,2]
[338563968,1726737041199,-518.724556,0.00019828,2]
[338563970,1726737041208,-518.724556,0.00019828,2]
[338563972,1726737041218,-11474.125156,0.00019846,3]
[338563974,1726737041227,-179538.50768271,0.00019856,2]
[338563977,1726737041240,-4099.43223549,0.00019856,2]
[338563979,1726737041249,-151.0,0.00019856,2]
[338563981,1726737041259,-151.0,0.00019856,2]
[338563983,1726737041268,-1356.979068,0.00019856,2]
[338563985,1726737041277,-1356.979068,0.00019856,2]
[338563986,1726737041286,-151.0,0.00019856,2]
[338563989,1726737041296,-151.0,0.00019856,2]
[338563991,1726737041305,-995.750854,0.00019856,2]
[338563993,1726737041314,-995.750854,0.00019856,2]
[338563995,1726737041324,-1133.191621,0.00019856,2]
[338563996,1726737041333,-1133.191621,0.00019856,2]
[338563998,1726737041342,-402.321528,0.00019856,2]
[338564000,1726737041351,-402.321528,0.00019856,2]
[338564002,1726737041360,-151.0,0.00019856,2]
[338564004,1726737041370,-320.892577,0.00019856,2]
[338564007,1726737041379,-320.892577,0.00019856,2]
[338564009,1726737041389,-452.891718,0.00019856,2]
[338564011,1726737041398,-452.891718,0.00019856,2]
[338564012,1726737041407,-151.0,0.00019856,2]
[338564014,1726737041416,-151.0,0.00019856,2]
[338564016,1726737041425,-151.0,0.00019856,2]
[338564018,1726737041435,-151.0,0.00019856,2]
[338564020,1726737041444,-151.0,0.00019856,2]
[338564022,1726737041454,-166.899942,0.00019856,2]
[338564024,1726737041463,-151.0,0.00019856,2]
[338564026,1726737041473,-166.899942,0.00019856,2]
[338564028,1726737041482,-151.0,0.00019856,2]
[338564030,1726737041491,-151.0,0.00019856,2]
[338564033,1726737041501,-151.0,0.00019856,2]
[338564034,1726737041512,-323.897088,0.00019856,2]
[338564036,1726737041521,-323.897088,0.00019856,2]
[338564038,1726737041531,-200.953414,0.00019856,2]
[338564040,1726737041540,-151.0,0.00019856,2]
[338564042,1726737041549,-151.0,0.00019856,2]
[338564044,1726737041559,-306.518926,0.00019856,2]
[338564046,1726737041568,-200.953414,0.00019856,2]
[338564048,1726737041578,-306.518926,0.00019856,2]
[338564050,1726737041587,-151.0,0.00019856,2]
[338564052,1726737041597,-151.0,0.00019856,2]
[338564054,1726737041606,-151.0,0.00019856,2]
[338564056,1726737041615,-186.158818,0.00019856,2]
[338564058,1726737041624,-518.724556,0.00019856,2]
[338564060,1726737041634,-243.445047,0.00019856,2]
[338564062,1726737041643,-518.724556,0.00019856,2]
[338564064,1726737041653,-243.445047,0.00019856,2]
[338564066,1726737041664,-8605.59386697,0.00019859,3]
[338564068,1726737041673,-300.593626,0.00019863,2]
[338564070,1726737041683,-151.0,0.00019869,2]
[338564072,1726737041692,-812.674974,0.00019869,2]
[338564074,1726737041702,-1356.979068,0.00019869,2]
[338564076,1726737041712,-812.674974,0.00019869,2]
[338564078,1726737041722,-1356.979068,0.00019869,2]
[338564080,1726737041732,-151.0,0.00019869,2]
[338564082,1726737041741,-291.490486,0.00019869,2]
[338564084,1726737041750,-291.490486,0.00019869,2]
[338564086,1726737041760,-995.750854,0.00019869,2]
[338564088,1726737041770,-995.750854,0.00019869,2]
[338564090,1726737041779,-1133.191621,0.00019869,2]
[338564092,1726737041788,-1133.191621,0.00019869,2]
[338564094,1726737041798,-402.321528,0.00019869,2]
[338564096,1726737041808,-402.321528,0.00019869,2]
[338564098,1726737041817,-151.0,0.00019869,2]
[338564100,1726737041827,-320.892577,0.00019869,2]
[338564102,1726737041836,-320.892577,0.00019869,2]
[338564104,1726737041845,-452.891718,0.00019869,2]
[338564106,1726737041855,-452.891718,0.00019869,2]
[338564108,1726737041866,-151.0,0.00019869,2]
[338564110,1726737041875,-151.0,0.00019869,2]
[338564112,1726737041885,-152.166882,0.00019869,2]
[338564114,1726737041894,-151.0,0.00019869,2]
[338564116,1726737041903,-151.0,0.00019869,2]
[338564118,1726737041913,-166.899942,0.00019869,2]
[338564139,1726737042123,-151.0,0.00019869,2]
[338564142,1726737042145,-166.899942,0.00019869,2]
[338564144,1726737042155,-151.0,0.00019869,2]
[338564146,1726737042165,-151.0,0.00019869,2]
[338564148,1726737042174,-323.897088,0.00019869,2]
[338564150,1726737042183,-323.897088,0.00019869,2]
[338564152,1726737042193,-200.953414,0.00019869,2]
[338564154,1726737042202,-151.0,0.00019869,2]
[338564156,1726737042212,-306.518926,0.00019869,2]
[338564158,1726737042222,-200.953414,0.00019869,2]
[338564160,1726737042232,-306.518926,0.00019869,2]
[338564162,1726737042241,-151.0,0.00019869,2]
[338564164,1726737042251,-518.724556,0.00019869,2]
[338564166,1726737042260,-518.724556,0.00019869,2]
[338564168,1726737042270,-151.0,0.0001987,2]
[338564170,1726737042280,-812.674974,0.0001987,2]
[338564172,1726737042289,-203.75248754,0.0001987,2]
[338564176,1726737042312,-1153.22658046,0.0001987,2]
[338564178,1726737042322,-812.674974,0.0001987,2]
[338564180,1726737042331,-750.88507999,0.0001987,2]
[338564182,1726737042344,-606.09398801,0.0001987,2]
[338564184,1726737042355,-151.0,0.0001987,2]
[338564186,1726737042366,-291.490486,0.0001987,2]
[338564188,1726737042375,-291.490486,0.0001987,2]
[338564190,1726737042384,-318.70161502,0.0001987,2]
[338564305,1726737043445,-500.0,0.00019817,2]
[338564307,1726737043454,-500.0,0.00019817,2]
[338564309,1726737043463,-500.0,0.00019817,2]
[338564311,1726737043473,-443.26432326,0.00019817,2]
[338564313,1726737043482,-500.0,0.00019817,2]
[338564314,1726737043491,-500.0,0.00019817,2]
[338564317,1726737043502,-500.0,0.00019817,2]
[338564318,1726737043511,-500.0,0.00019817,2]
[338564320,1726737043520,-500.0,0.00019817,2]
[338564322,1726737043529,-677.04923898,0.0001987,2]
[338564324,1726737043539,-995.750854,0.0001987,2]
[338564326,1726737043548,-1133.191621,0.0001987,2]
[338564328,1726737043558,-1133.191621,0.0001987,2]
[338564330,1726737043567,-402.321528,0.0001987,2]
[338564332,1726737043576,-402.321528,0.0001987,2]
[338564334,1726737043586,-151.0,0.0001987,2]
[338564336,1726737043595,-320.892577,0.0001987,2]
[338564338,1726737043605,-320.892577,0.0001987,2]
[338564340,1726737043614,-452.891718,0.0001987,2]
[338564342,1726737043623,-452.891718,0.0001987,2]
[338564344,1726737043633,-151.0,0.0001987,2]
[338564346,1726737043642,-151.0,0.0001987,2]
[338564348,1726737043651,-151.0,0.0001987,2]
[338564350,1726737043660,-151.0,0.0001987,2]
[338564352,1726737043670,-166.899942,0.0001987,2]
[338564354,1726737043679,-151.0,0.0001987,2]
[338564356,1726737043689,-166.899942,0.0001987,2]
[338564358,1726737043698,-260.000528,0.0001987,2]
[338564360,1726737043707,-323.897088,0.0001987,2]
[338564362,1726737043717,-323.897088,0.0001987,2]
[338564364,1726737043726,-200.953414,0.0001987,2]
[338564367,1726737043736,-151.0,0.0001987,2]
[338564368,1726737043745,-306.518926,0.0001987,2]
[338564370,1726737043755,-200.953414,0.0001987,2]
[338564373,1726737043764,-306.518926,0.0001987,2]
[338564374,1726737043773,-151.0,0.0001987,2]
[338564376,1726737043782,-518.724556,0.0001987,2]
[338564378,1726737043792,-518.724556,0.0001987,2]